[Event "Lliga Catalana 2024"]
[Site "Catalonia"]
[Date "2024.03.02"]
[Round "7.1"]
[White "Solodovnichenko, Yuri"]
[Black "Edouard, Romain"]
[Result "1-0"]
[ECO "C17"]
[WhiteElo "2481"]
[BlackElo "2523"]
[Annotator "TA"]
[PlyCount "97"]
[EventDate "2024.01.18"]
[EventType "team-tourn"]
[EventCountry "ESP"]
[SourceTitle "playchess.com"]
[Source "ChessBase"]
[SourceQuality "1"]
[TimeControl "5400+30"]

{[%evp 9,97,-3,25,11,12,13,44,0,0,0,-10,-12,1,-11,0,-31,-38,-126,-112,-109,-112,-112,-106,-102,-108,-115,-112,-111,-110,-141,-145,-132,-131,-120,-135,-203,-164,-175,-109,-115,-106,-110,-100,-120,-100,-128,-91,-131,-95,-162,-136,-203,-190,-265,-195,-273,-129,-127,-82,-154,24,29,172,175,162,125,118,110,328,297,414,404,528,520,628,612,984,972,970,708,767,764,880,810,1133,1055,2089,3238,5915,3772]} 1. e4 {[%emt 0:00:30]} e6 {[%emt 0:00:04]} 2. d4 {[%emt 0:00:04]} d5 {[%emt 0:00:04]} 3. Nc3 {[%emt 0:00:06]} Bb4 {[%emt 0:00:19]} 4. e5 {[%emt 0:00:14]} c5 {[%emt 0:00:15]} 5. Bd2 {[%emt 0:00:19]} Nh6 {[%emt 0:00:57]} 6. dxc5 {[%emt 0:07:13]} Nc6 {[%emt 0:02:28]} 7. Nf3 {[%emt 0:01:42]} Bxc5 {[%emt 0:07:59] ...Ng4 is the strong threat.} 8. Bb5 {[%emt 0:04:00]} (8. Bxh6 $14 gxh6 9. Qd2) 8... Nf5 $11 {[%emt 0:03:04]} 9. O-O {[%emt 0:16:35]} O-O {[%emt 0:00:24]} 10. Bd3 {[%emt 0:07:13]} h6 {[%emt 0:05:50]} 11. Re1 {[%emt 0:05:03]} a6 {[%emt 0:04:36]} 12. g4 {[%emt 0:06:02][%cal Oc3a4] aiming for Na4!} Nfe7 {[%emt 0:00:17]} 13. Qc1 {[%emt 0:10:39]} (13. g5 $15 h5 14. Nh4) 13... f6 {[%emt 0:03:15]} 14. Bxh6 {[%emt 0:02:08][%cal Oc3d1]} Nxe5 {[%emt 0:07:15]} 15. Nxe5 {[%emt 0:00:39]} fxe5 {[%emt 0:00:19]} 16. Rxe5 {[%emt 0:05:10][%cal Oh6g7] [#] Strongly threatening Bxg7!} Ng6 $1 {[%emt 0:19:09][%mdl 512]} 17. Qg5 {[%emt 0:16:58]} Qf6 {[%emt 0:25:05]} (17... gxh6 18. Qxg6+ Kh8 19. Qh7#) 18. Qxf6 {[%emt 0:01:56]} (18. Bxg6 $2 Qxf2+ 19. Kh1 Qf3#) 18... Rxf6 {[%emt 0:00:02]} 19. Bxg6 {[%emt 0:02:04]} gxh6 {[%emt 0:00:21]} 20. Bd3 {[%emt 0:02:30]} Rxf2 {[%emt 0:00:56]} (20... Bxf2+ 21. Kg2 $17) 21. Kh1 {[%emt 0:01:10]} Bd7 {[%emt 0:01:24]} 22. Rg1 {[%emt 0:02:48]} (22. Rh5 $17 {was necessary.}) 22... Kf7 {[%emt 0:09:03]} 23. Rg2 {[%emt 0:02:29]} Bc6 {[%emt 0:04:57]} (23... Rf6 $19 24. Ne2 Rg8) 24. Rxf2+ $17 {[%emt 0:01:43]} Bxf2 {[%emt 0:00:02]} 25. Kg2 {[%emt 0:00:15]} Bd4 {[%emt 0:00:55]} 26. Rh5 {[%emt 0:00:53]} Bg7 {[%emt 0:02:58]} 27. Kg3 {[%emt 0:00:27]} e5 {[%emt 0:00:15]} 28. Bf1 {[%emt 0:02:26]} Rd8 {[%emt 0:00:38]} 29. Bg2 {[%emt 0:00:44]} (29. Nd1 $17) 29... e4 {[%emt 0:00:27]} 30. Rf5+ {[%emt 0:00:33]} (30. Kf2 $17) 30... Ke6 $19 {[%emt 0:00:38]} 31. Kh4 {[%emt 0:00:31]} (31. Ne2 $142) 31... Bf6+ {[%emt 0:01:05]} 32. Kh3 {[%emt 0:00:53]} (32. Kg3 $142) 32... Bg5 {[%emt 0:00:54]} (32... Rg8 $19 {has better winning chances. And now ...Rg5 would win.} 33. Ne2 Bxb2) 33. Kg3 $17 {[%emt 0:00:02]} Bd2 {[%emt 0:00:23]} 34. h4 {[%emt 0:00:48]} (34. Ne2 $142) 34... e3 $2 {[%emt 0:00:35]} (34... Kd6 $17 {Hoping for ...Be1+.} 35. a4 Rg8) 35. Ne2 $11 {[%emt 0:00:10]} d4 {[%emt 0:00:29] [#]} (35... Ke7 $11) 36. Bxc6 $1 $18 {[%emt 0:00:13]} bxc6 {[%emt 0:00:00][%mdl 4096] Endgame. KRB-KRN} 37. Rh5 {[%emt 0:00:30]} Ke7 {[%emt 0:00:56]} 38. Kf4 {[%emt 0:00:54]} (38. Rxh6 $6 c5 $11) 38... Kd6 $2 {[%emt 0:00:24]} (38... Rb8 $16 {was called for.}) 39. Ke4 {[%emt 0:00:15]} (39. Nxd4 e2+ 40. Ke4 e1=Q+ (40... e1=R+ $2 41. Kd3 $19) 41. Kd3 Qe3+ 42. Kc4 Kc7 43. c3 Rxd4+ 44. Kb3 Qe6+ (44... Rxg4 45. Rf5 Qe6+ 46. Kc2 Qe4+ 47. Kd1 Rg1+ 48. Rf1 Rxf1+ 49. Kxd2 Rf2+ 50. Kd1 Qh1#) 45. Kc2 Bxc3 (45... Rxg4 46. a3 Rg2 47. Rc5) (45... Rxg4 46. a3 Rg2 47. Rc5)) 39... Rg8 {[%emt 0:00:33]} 40. Rxh6+ {[%emt 0:01:41]} (40. Kxd4 Rxg4+ 41. Kd3 Rg6 $16) 40... Kc5 41. g5 {[%emt 0:00:00][%cal Bg4g5,Bg5g6,Bg6g7][%mdl 32] White is clearly winning.} (41. Nxd4 $2 {is the wrong capture.} Rxg4+ 42. Kf3 Rf4+ (42... Rxd4 $2 43. c3 $19) 43. Ke2 Kxd4 $19) 41... d3 {[%emt 0:01:11]} 42. cxd3 {[%emt 0:00:07]} Rf8 {[%emt 0:00:32]} 43. d4+ {[%emt 0:00:12]} Kb5 {[%emt 0:00:03]} 44. Rf6 {[%emt 0:00:14]} Rh8 {[%emt 0:00:09]} 45. Rf4 {[%emt 0:00:16] Black must now prevent g6.} c5 {[%emt 0:00:20]} 46. g6 {[%emt 0:00:52]} Re8+ {[%emt 0:00:08]} 47. Kf3 {[%emt 0:00:54]} Kc4 {[%emt 0:00:28]} 48. dxc5+ {[%emt 0:00:39]} (48. h5 $142 Rg8 49. dxc5+ Kd5 50. Rf5+ Ke6 51. Nd4+ Kd7 52. Rf7+ Kd8 53. c6) 48... Kd3 {[%emt 0:00:01]} 49. g7 {[%emt 0:00:23] Weighted Error Value: White=0.22 (precise) /Black=0.54.  Loses game:     	---       	Black=1      Mistake:       	White=8     	Black=4      Inaccurate:     	White=2     	Black=5      OK:         	White=9     	Black=11     Best:        	White=6     	---        Strong:       	White=1     	---} 1-0

[Event "Lliga Catalana 2024"]
[Site "Catalonia"]
[Date "2024.03.02"]
[Round "7.2"]
[White "Panelo Munoz, Marcelo A."]
[Black "Campos Moreno, Javier B."]
[Result "1/2-1/2"]
[ECO "D38"]
[WhiteElo "2327"]
[BlackElo "2403"]
[Annotator "RC"]
[PlyCount "27"]
[EventDate "2024.01.18"]
[EventType "team-tourn"]
[EventCountry "ESP"]
[SourceTitle "playchess.com"]
[Source "ChessBase"]
[SourceQuality "1"]
[TimeControl "5400+30"]

1. d4 {[%emt 0:00:02]} d5 {[%emt 0:00:18]} 2. c4 {[%emt 0:00:41]} e6 {[%emt 0:00:12]} 3. Nf3 {[%emt 0:00:38]} Nf6 {[%emt 0:00:43]} 4. Nc3 {[%emt 0:00:44]} Nbd7 {[%emt 0:01:40]} 5. cxd5 {[%emt 0:03:31]} exd5 {[%emt 0:00:16]} 6. Bg5 {[%emt 0:00:17]} Bb4 {[%emt 0:01:11]} 7. e3 {[%emt 0:01:00]} c5 {[%emt 0:00:37]} 8. Bd3 {[%emt 0:02:12]} Qa5 {[%emt 0:00:27]} 9. Qc2 {[%emt 0:00:38]} O-O {[%emt 0:05:27]} 10. O-O {[%emt 0:06:33]} c4 {[%emt 0:02:13]} 11. Bf5 {[%emt 0:00:25]} Re8 {[%emt 0:00:19]} 12. Nd2 {[%emt 0:16:13]} g6 {[%emt 0:15:33]} 13. Bh3 {[%emt 0:16:06]} Bxc3 {[%emt 0:21:44]} 14. Qxc3 {[%emt 0:06:36]} 1/2-1/2

[Event "Lliga Catalana 2024"]
[Site "Catalonia"]
[Date "2024.03.02"]
[Round "7.2"]
[White "Rojano Alfonso, Carlos"]
[Black "Movsziszian, Karen"]
[Result "1/2-1/2"]
[ECO "B06"]
[WhiteElo "2240"]
[BlackElo "2439"]
[Annotator "RC"]
[PlyCount "101"]
[EventDate "2024.01.18"]
[EventType "team-tourn"]
[EventCountry "ESP"]
[SourceTitle "playchess.com"]
[Source "ChessBase"]
[SourceQuality "1"]
[TimeControl "5400+30"]

1. e4 {[%emt 0:17:01]} d6 {[%emt 0:02:49]} 2. d4 {[%emt 0:00:31]} g6 {[%emt 0:00:02]} 3. Nc3 {[%emt 0:00:12]} Bg7 {[%emt 0:00:05]} 4. Nf3 {[%emt 0:00:08]} a6 {[%emt 0:00:13]} 5. h4 {[%emt 0:08:02]} Nf6 {[%emt 0:01:51]} 6. Bg5 {[%emt 0:03:16]} Nc6 {[%emt 0:06:39]} 7. Qd2 {[%emt 0:02:39]} h5 {[%emt 1:22:21]} 8. O-O-O {[%emt 0:05:16]} b5 {[%emt 0:00:00]} 9. Bd3 {[%emt 0:08:55]} Ng4 {[%emt 0:00:00]} 10. Nd5 {[%emt 0:05:55]} O-O {[%emt 0:00:00]} 11. Kb1 {[%emt 0:04:18]} f6 {[%emt 0:00:00]} 12. Bf4 {[%emt 0:00:40]} e6 {[%emt 0:00:00]} 13. Ne3 {[%emt 0:03:37]} e5 {[%emt 0:00:00]} 14. dxe5 {[%emt 0:00:59]} dxe5 {[%emt 0:00:00]} 15. Bg3 {[%emt 0:00:04]} Kh7 {[%emt 0:00:00]} 16. Nh2 {[%emt 0:03:36]} Nxe3 {[%emt 0:00:00]} 17. Qxe3 {[%emt 0:01:54]} Qe7 {[%emt 0:00:00]} 18. f3 {[%emt 0:03:13]} Bh6 {[%emt 0:00:00]} 19. Qg1 {[%emt 0:00:08]} Nd4 {[%emt 0:00:00]} 20. Bf2 {[%emt 0:00:13]} c5 {[%emt 0:00:00]} 21. c3 {[%emt 0:01:17]} Ne6 {[%emt 0:00:00]} 22. g4 {[%emt 0:00:42]} c4 {[%emt 0:00:00]} 23. Bc2 {[%emt 0:00:56]} Rb8 {[%emt 0:00:00]} 24. Be1 {[%emt 0:05:34]} a5 {[%emt 0:00:00]} 25. Nf1 {[%emt 0:00:16]} b4 {[%emt 0:00:00]} 26. Ne3 {[%emt 0:00:42]} b3 {[%emt 0:00:00]} 27. axb3 {[%emt 0:00:18]} cxb3 {[%emt 0:00:00]} 28. Bd3 {[%emt 0:00:10]} Nf4 {[%emt 0:00:00]} 29. Nd5 {[%emt 0:04:31]} Nxd5 {[%emt 0:00:00]} 30. exd5 {[%emt 0:00:06]} f5 {[%emt 0:00:00]} 31. gxh5 {[%emt 0:02:55]} gxh5 {[%emt 0:00:00]} 32. d6 {[%emt 0:00:07]} Qxd6 {[%emt 0:00:00]} 33. Qa7+ {[%emt 0:01:05]} Kh8 {[%emt 0:00:00]} 34. Bf2 {[%emt 0:01:36]} Rb7 {[%emt 0:00:00]} 35. Qxa5 {[%emt 0:00:45]} Qc7 {[%emt 0:00:00]} 36. Qa6 {[%emt 0:03:11]} Bg7 {[%emt 0:00:59]} 37. Rhg1 {[%emt 0:00:54]} Rf6 {[%emt 0:01:39]} 38. Qc4 {[%emt 0:02:08]} Be6 {[%emt 0:00:43]} 39. Qxc7 {[%emt 0:01:17]} Rxc7 {[%emt 0:00:01]} 40. Bb5 {[%emt 0:02:03]} Bf7 {[%emt 0:01:32]} 41. Rd8+ {[%emt 0:02:11]} Kh7 {[%emt 0:00:01]} 42. c4 {[%emt 0:00:31]} Rb7 {[%emt 0:06:47]} 43. Bc5 {[%emt 0:02:33]} Bg6 {[%emt 0:00:57]} 44. Kc1 {[%emt 0:01:08]} Bh6+ {[%emt 0:01:09]} 45. Kd1 {[%emt 0:00:08]} e4 {[%emt 0:01:06]} 46. Ke2 {[%emt 0:00:52]} Re6 {[%emt 0:01:55]} 47. Rgd1 {[%emt 0:01:33]} exf3+ {[%emt 0:00:12]} 48. Kxf3 {[%emt 0:00:04]} Re4 {[%emt 0:01:28]} 49. R1d7+ {[%emt 0:04:50]} Rxd7 50. Rxd7+ Kg8 51. Bc6 {[%emt 0:01:00]} 1/2-1/2

[Event "Lliga Catalana 2024"]
[Site "Catalonia"]
[Date "2024.03.02"]
[Round "7.3"]
[White "Dominguez Pons, Eric"]
[Black "Martinez Pla, Xavier"]
[Result "1/2-1/2"]
[ECO "E17"]
[WhiteElo "2328"]
[BlackElo "2251"]
[Annotator "TA"]
[PlyCount "30"]
[EventDate "2024.01.18"]
[EventType "team-tourn"]
[EventCountry "ESP"]
[SourceTitle "playchess.com"]
[Source "ChessBase"]
[SourceQuality "1"]
[TimeControl "5400+30"]

{[%evp 12,30,17,20,23,14,25,18,24,15,20,12,24,12,27,20,29,24,24,17,31]} 1. d4 {[%emt 0:00:07]} Nf6 {[%emt 0:01:06]} 2. Nf3 {[%emt 0:00:23]} e6 {[%emt 0:00:06]} 3. c4 {[%emt 0:00:27]} b6 {[%emt 0:00:30]} 4. g3 {[%emt 0:00:56]} Bb7 {[%emt 0:00:07]} 5. Bg2 {[%emt 0:00:19]} Be7 {[%emt 0:00:56]} 6. O-O {[%emt 0:01:01]} O-O {[%emt 0:00:07]} 7. Re1 {[%emt 0:01:04]} Ne4 {[%emt 0:00:08]} 8. Nfd2 {[%emt 0:02:07]} d5 {[%emt 0:00:27]} 9. cxd5 {[%emt 0:00:57]} exd5 {[%emt 0:00:15]} 10. Nxe4 {[%emt 0:00:57]} dxe4 {[%emt 0:02:51]} 11. Nc3 {[%emt 0:00:48]} f5 {[%emt 0:00:31]} 12. Bf4 {[%emt 0:01:16]} Nc6 {[%emt 0:00:17]} 13. e3 {[%emt 0:09:03]} Bd6 {[%emt 0:08:34]} 14. Bxd6 {[%emt 0:02:17]} cxd6 {[%emt 1:21:35] [#]} 15. b4 $1 {[%emt 1:16:18]} Qd7 {[%emt 0:00:00] An uneventful encounter.   Weighted Error Value: White=0.04 (flawless) /Black=0.02 (flawless) .  OK:         	White=4     	Black=2      Best:        	---       	Black=1} (15... Rf7 16. a3) 1/2-1/2

[Event "Lliga Catalana 2024"]
[Site "Catalonia"]
[Date "2024.03.02"]
[Round "7.3"]
[White "Lazaro Pujol, Abel"]
[Black "Zhukov, Dmitry"]
[Result "0-1"]
[ECO "B33"]
[WhiteElo "2301"]
[BlackElo "2308"]
[Annotator "TA"]
[PlyCount "70"]
[EventDate "2024.01.18"]
[EventType "team-tourn"]
[EventCountry "ESP"]
[SourceTitle "playchess.com"]
[Source "ChessBase"]
[SourceQuality "1"]
[TimeControl "5400+30"]

{[%evp 25,70,35,50,16,20,22,18,11,4,5,19,0,9,0,18,26,33,-43,-43,-56,-76,-70,-47,-58,-47,-47,-43,-46,-48,-56,-71,-100,-67,-219,-193,-187,-193,-466,-481,-731,-725,-720,-706,-1062,-811,-1062,-1048]} 1. e4 {[%emt 0:00:07]} c5 {[%emt 0:00:15]} 2. Nf3 {[%emt 0:00:14][%cal Bg1f3,Bf3d4,Bd4b5][%mdl 32]} Nc6 {[%emt 0:00:09]} 3. d4 {[%emt 0:00:08]} cxd4 {[%emt 0:00:07]} 4. Nxd4 {[%emt 0:00:10]} Nf6 {[%emt 0:00:20]} 5. Nc3 {[%emt 0:00:06]} e5 {[%emt 0:00:29]} 6. Ndb5 {[%emt 0:00:20]} d6 {[%emt 0:00:13]} 7. Bg5 {[%emt 0:00:30]} a6 {[%emt 0:00:11]} 8. Na3 {[%emt 0:00:12]} b5 {[%emt 0:00:22]} 9. Bxf6 {[%emt 0:00:46]} gxf6 {[%emt 0:00:09]} 10. Nd5 {[%emt 0:00:04]} f5 {[%emt 0:00:19]} 11. Bd3 {[%emt 0:00:10]} Be6 {[%emt 0:00:34]} 12. O-O {[%emt 0:00:32]} Bxd5 {[%emt 0:01:23]} 13. exd5 {[%emt 0:00:05]} Ne7 $1 {[%emt 0:00:07][%cal Of8g7]} 14. Re1 {[%emt 0:00:30]} Bg7 {[%emt 0:00:29][%cal Oe5e4] ...e4! would now be deadly.} (14... Nxd5 $2 {loses.} 15. Bxb5+ (15. Bxf5 Ne7 $16) 15... axb5 16. Qxd5 $18) 15. c3 {[%emt 0:00:09]} Qd7 {[%emt 0:00:13][%cal Oe8g8]} (15... Nxd5 $2 {is the wrong capture.} 16. Bxb5+ (16. Bxf5 Ne7 $16) 16... axb5 17. Qxd5 $18) 16. Bf1 {[%emt 0:01:40] The position is equal.} O-O {[%emt 0:04:29]} 17. Nc2 {[%emt 0:04:05]} Rab8 {[%emt 0:00:47]} 18. g3 {[%emt 0:05:22]} f4 {[%emt 0:04:29]} 19. gxf4 {[%emt 0:20:37]} f5 {[%emt 0:03:00]} 20. fxe5 {[%emt 0:19:29]} dxe5 {[%emt 0:00:11][%cal Of8f6]} 21. d6 {[%emt 0:02:33]} (21. Nb4 $14) 21... Ng6 $15 {[%emt 0:07:04][%mdl 1024] Black has compensation.} 22. Nb4 {[%emt 0:04:30]} Rb6 {[%emt 0:10:09]} 23. Qd5+ {[%emt 0:02:44]} Kh8 {[%emt 0:01:14]} 24. Rad1 {[%emt 0:00:54] Hoping for Qc5.} Rd8 $1 {[%emt 0:06:04][%cal Og7f8]} 25. Qc5 {[%emt 0:19:02]} Rxd6 {[%emt 0:03:38]} 26. Qxd6 {[%emt 0:01:42]} Qxd6 {[%emt 0:00:11]} 27. Rxd6 {[%emt 0:00:02]} Rxd6 {[%emt 0:00:14]} 28. Nc2 {[%emt 0:08:27] [#]} Nh4 $1 {[%emt 0:02:48]} 29. Re3 {[%emt 0:04:11] [#] Repels Nf3+. This costs White the game.} ({White should try} 29. Kh1 $15) 29... e4 $1 $19 {[%emt 0:04:38]} 30. Kh1 {[%emt 0:04:25]} Be5 {[%emt 0:10:54]} 31. Be2 $2 {[%emt 0:01:15]} (31. Re2) 31... Rd2 {[%emt 0:01:43] Black is clearly winning.} 32. Nd4 {[%emt 0:00:37]} (32. Nb4 $142) 32... Rxb2 {[%emt 0:01:42] ( -> ...Rb1+)} 33. Bd1 {[%emt 0:00:49]} Rxf2 {[%emt 0:01:32]} 34. Be2 {[%emt 0:00:32] Repels Rf1+} Rxh2+ {[%emt 0:02:43]} 35. Kg1 {[%emt 0:00:05]} Bf4 {[%emt 0:35:10] Weighted Error Value: White=0.70/Black=0.02 (flawless) .  Mistake:       	White=4     	---        Inaccurate:     	White=1     	---        OK:         	White=9     	Black=8      Best:        	---       	Black=2      Strong:       	---       	Black=3} 0-1

[Event "Lliga Catalana 2024"]
[Site "Catalonia"]
[Date "2024.03.02"]
[Round "7.4"]
[White "Alfaro Rojas, Alfonso Jose"]
[Black "Lemeshev, Ilya"]
[Result "1-0"]
[ECO "A05"]
[WhiteElo "2301"]
[BlackElo "2236"]
[Annotator "TA"]
[PlyCount "95"]
[EventDate "2024.01.18"]
[EventType "team-tourn"]
[EventCountry "ESP"]
[SourceTitle "playchess.com"]
[Source "ChessBase"]
[SourceQuality "1"]
[TimeControl "5400+30"]

{[%evp 12,95,2,-7,28,6,0,-7,78,13,58,0,16,19,11,-29,-33,-31,-24,-46,-53,-50,-45,-70,-42,-83,-33,-32,-6,-25,-10,-14,0,0,0,0,0,3,9,9,100,98,195,185,155,96,80,75,55,65,241,247,258,244,234,164,255,156,5518,5518,5493,5481,1819,814,933,880,950,903,733,158,531,0,701,458,436,378,493,486,1568,1599,898,622,864,864,29997,29998]} 1. Nf3 {[%emt 0:00:37]} Nf6 {[%emt 0:00:14]} 2. g3 {[%emt 0:00:09]} g6 {[%emt 0:01:16]} 3. Bg2 {[%emt 0:00:08]} Bg7 {[%emt 0:00:07]} 4. O-O {[%emt 0:00:10]} O-O {[%emt 0:00:10]} 5. d3 {[%emt 0:00:06]} c5 {[%emt 0:00:29]} 6. e4 {[%emt 0:00:43][%cal Be2e4,Be4e5][%mdl 32]} Nc6 {[%emt 0:00:26]} 7. Nbd2 {[%emt 0:00:08]} b5 {[%emt 0:06:27]} 8. a4 {[%emt 0:03:22] [#] Threatens to win with e5.} b4 {[%emt 0:00:39]} 9. e5 {[%emt 0:13:47]} Ng4 {[%emt 0:06:56]} (9... Ne8 $11) 10. Re1 {[%emt 0:00:07]} (10. Nh4 $16) 10... Ba6 {[%emt 0:03:21][%cal Rg4e5]} 11. Nb3 {[%emt 0:03:28]} d6 {[%emt 0:09:30]} 12. exd6 {[%emt 0:03:33]} exd6 {[%emt 0:00:07]} 13. h3 {[%emt 0:00:02]} (13. Ng5 {with more complications.} Nge5 14. f4 c4 15. fxe5 cxb3 16. e6) 13... Nf6 {[%emt 0:02:21]} 14. Bf4 {[%emt 0:05:49]} Qd7 {[%emt 0:04:10]} 15. Qc1 {[%emt 0:16:40]} Rfe8 {[%emt 0:01:22]} 16. Rxe8+ {[%emt 0:01:14]} Rxe8 {[%emt 0:00:05]} 17. Bh6 {[%emt 0:00:02]} Bh8 {[%emt 0:01:03]} 18. Qd2 {[%emt 0:08:50]} Bb7 {[%emt 0:05:17]} (18... Ne7 $17) 19. Re1 $15 {[%emt 0:07:51]} Nd5 {[%emt 0:05:45]} 20. Rxe8+ {[%emt 0:03:42]} Qxe8 {[%emt 0:00:02]} 21. Ng5 {[%emt 0:00:10]} Nd4 {[%emt 0:01:35]} 22. Nxd4 {[%emt 0:06:18]} Bxd4 {[%emt 0:00:43]} 23. Ne4 $40 {[%emt 0:00:58][%mdl 128] White has some attack.} Qd7 {[%emt 0:05:04]} (23... Qxa4 $2 24. Nxd6 Ba8 25. Qg5 $18) 24. c3 {[%emt 0:00:34]} Bh8 {[%emt 0:05:22]} 25. d4 {[%emt 0:01:33]} cxd4 {[%emt 0:04:58]} (25... bxc3 $1 $11 26. bxc3 c4) 26. c4 $16 {[%emt 0:01:22] White is more active.} (26. cxb4 a6 $14) (26. cxd4 a5 $11) 26... Nc3 {[%emt 0:05:45]} 27. bxc3 $18 {[%emt 0:00:23]} dxc3 {[%emt 0:00:53] [#]} 28. Qd1 {[%emt 0:00:39]} (28. Qxd6 $2 Qxd6 29. Nxd6 Bxg2 $19) (28. Qf4 $142 $1 {Threatening mate with Nf6+.} Bxe4 (28... Qxa4 29. Nf6+ Bxf6 30. Qxf6 Qd1+ 31. Kh2) 29. Qxe4) 28... Bc6 $16 {[%emt 0:00:42]} 29. Nxd6 {[%emt 0:05:44]} Bxg2 {[%emt 0:04:59]} (29... Bxa4 $2 30. Qf3 $18) 30. Kxg2 {[%emt 0:00:10][%cal Od1f3]} Be5 $2 {[%emt 0:00:13] White leaves nothing to chance now.} (30... Bg7 $1 $14 31. Bxg7 Kxg7 32. Qd4+ f6) 31. c5 $18 {[%emt 0:03:12]} Qc6+ {[%emt 0:01:57]} 32. Kg1 {[%emt 0:00:02]} (32. Qf3 Qxf3+ 33. Kxf3 b3 $19) 32... Qxc5 {[%emt 0:02:17]} 33. Nb5 {[%emt 0:01:05]} Qe7 {[%emt 0:04:39] Wards off Qd8+} (33... Bf6 $142) 34. Qd5 {[%emt 0:04:21]} Qe8 {[%emt 0:02:22] Inhibits Qa8.} (34... Bg7 $16 35. Qa8+ Qf8 36. Qxf8+ (36. Qxa7 $2 Bxh6 37. Qc7 Qe8 $19) 36... Kxf8 37. Bxg7+ Kxg7) 35. Nd6 {[%emt 0:01:44]} (35. Nxa7 Bg7 36. Bxg7 Kxg7 $11) 35... Bxd6 {[%emt 0:03:02]} 36. Qxd6 {[%emt 0:00:07]} c2 {[%emt 0:00:04]} 37. Qxb4 {[%emt 0:00:07]} (37. Qc5 $142 b3 38. Qc3 (38. Qxa7 $2 b2 $19)) 37... Qc8 {[%emt 0:01:41]} 38. Qb2 {[%emt 0:00:58]} f6 {[%emt 0:00:11]} 39. Qb3+ {[%emt 0:00:44]} ({Weaker is} 39. Qxf6 c1=Q+ 40. Bxc1 Qxc1+ 41. Kh2 Qc5 42. Qe6+ Kg7 $16) 39... Kh8 {[%emt 0:00:01]} 40. Qe3 $2 {[%emt 0:00:15]} (40. Kh2 $18 {Intending Qf7 and mate.} c1=Q 41. Bxc1) 40... Kg8 {[%emt 0:00:22]} (40... g5 $16 {is more resistant.} 41. Qc1 (41. Qxa7 $2 {too greedy.} c1=Q+ 42. Kh2 Q1c7 $19) 41... Kg8) 41. Qb3+ {[%emt 0:00:30]} Kh8 {[%emt 0:00:06]} 42. Bc1 {[%emt 0:00:02] Qf7 would now be deadly.} Kg7 {[%emt 0:00:15]} 43. h4 {[%emt 0:00:14]} Qc6 {[%emt 0:00:23]} 44. Qe3 {[%emt 0:00:22]} Qxa4 {[%emt 0:00:55]} (44... Qc7 $142 45. Qd4 h5) 45. Qe7+ {[%emt 0:02:29]} Kg8 {[%emt 0:00:01]} 46. Qxf6 {[%emt 0:02:38]} Qe4 {[%emt 0:00:13]} 47. Kh2 {[%emt 0:00:26]} Qc4 {[%emt 0:01:58]} 48. Bh6 {[%emt 0:00:45] Weighted Error Value: White=0.73/Black=0.51.  Loses game:     	---       	Black=2      Mistake:       	White=2     	Black=6      Inaccurate:     	White=5     	Black=3      OK:         	White=12    	Black=9      Best:        	White=5     	Black=4} 1-0